bitfinex/quotes_BTCUSD_20250723
["timestamp","ask_amount","ask_price","bid_price","bid_amount"]
[1753287182163,0.91965646,118160.0,118150.0,0.0002]
[1753287182629,0.98294866,118160.0,118150.0,0.0002]
[1753287182845,0.95850866,118160.0,118150.0,0.0002]
[1753287183701,0.96050866,118160.0,118150.0,0.0002]
[1753287184647,1.11050866,118160.0,118150.0,0.0002]
[1753287187329,1.80386729,118160.0,118150.0,0.0002]
[1753287187564,1.82131631,118160.0,118150.0,1e-08]
[1753287187795,1.46795768,118160.0,118150.0,1e-08]
[1753287188011,1.82131631,118160.0,118150.0,1e-08]
[1753287188242,1.82055631,118160.0,118150.0,1e-08]
[1753287188924,1.82155631,118160.0,118150.0,1e-08]
[1753287189166,1.81955631,118160.0,118150.0,1e-08]
[1753287189408,1.81859631,118160.0,118150.0,1e-08]
[1753287189641,1.82259631,118160.0,118150.0,1e-08]
[1753287190551,1.82247631,118160.0,118150.0,1e-08]
[1753287192051,1.84792331,118160.0,118150.0,1e-08]
[1753287192255,1.87356972,118160.0,118150.0,1e-08]
[1753287192671,1.87456972,118160.0,118150.0,1e-08]
[1753287193127,1.87856972,118160.0,118150.0,1e-08]
[1753287193340,1.85092331,118160.0,118150.0,1e-08]
[1753287193952,1.71048331,118160.0,118150.0,1e-08]
[1753287194167,1.85092331,118160.0,118150.0,1e-08]
[1753287195094,1.71048331,118160.0,118150.0,1e-08]
[1753287195320,1.85092331,118160.0,118150.0,1e-08]
[1753287195560,7.25428194,118160.0,118150.0,1e-08]
[1753287195786,7.37757337,118160.0,118150.0,1e-08]
[1753287195998,7.37757337,118160.0,118110.0,0.1]
[1753287195999,1.38274378,118120.0,118110.0,0.1]
[1753287196212,1.6271001,118120.0,118110.0,0.1]
[1753287196429,1.6303401,118120.0,118110.0,0.1]
[1753287196660,1.6557921,118120.0,118110.0,0.1]
[1753287196900,1.01195347,118120.0,118110.0,0.1]
[1753287197111,1.13494445,118120.0,118110.0,0.1]
[1753287197325,1.07479635,118120.0,118110.0,0.1]
[1753287198222,0.93439635,118120.0,118110.0,0.1]
[1753287198434,1.07483635,118120.0,118110.0,0.10215]
[1753287198648,1.07583635,118120.0,118110.0,0.10215]
[1753287199070,0.93020635,118120.0,118110.0,0.10215]
[1753287199197,1.07267635,118120.0,118110.0,0.10215]
[1753287199405,1.07591635,118120.0,118110.0,0.1]
[1753287199616,1.13731635,118120.0,118110.0,0.1]
[1753287200611,1.28731635,118120.0,118110.0,0.1]
[1753287202399,1.08539635,118120.0,118110.0,0.1]
[1753287202627,1.22271635,118120.0,118110.0,0.10215]
[1753287202838,1.22076635,118120.0,118110.0,0.10215]
[1753287203323,0.70304615,118120.0,118110.0,0.8141212]
[1753287203545,0.55304565,118120.0,118110.0,0.43160039]
[1753287203759,0.56151147,118120.0,118110.0,0.78495902]
[1753287203968,0.56151147,118120.0,118110.0,0.43160039]
[1753287204182,0.73929669,118120.0,118110.0,0.35550667]
[1753287204400,0.7308318,118120.0,118110.0,0.16924]
[1753287204667,0.71390038,118120.0,118110.0,0.16605]
[1753287204994,0.71390038,118120.0,118110.0,0.34385035]
[1753287205212,0.70543449,118120.0,118110.0,0.34385035]
[1753287205413,0.70543449,118120.0,118110.0,0.16605]
[1753287206649,0.85543449,118120.0,118110.0,0.10215]
[1753287207209,0.85543449,118120.0,118110.0,0.27995035]
[1753287207411,0.85543449,118120.0,118110.0,0.35031681]
[1753287207608,0.86390024,118120.0,118110.0,0.37030952]
[1753287207875,0.7030463,118120.0,118110.0,0.73213433]
[1753287208078,0.71151219,118120.0,118110.0,0.73213433]
[1753287208354,0.45183729,118120.0,118110.0,0.73213433]
[1753287208566,0.4687685,118120.0,118110.0,0.73213433]
[1753287208780,0.73103095,118120.0,118110.0,0.3618432]
[1753287208989,0.73103152,118120.0,118110.0,0.16711]
[1753287209173,0.71310031,118120.0,118110.0,0.16711]
[1753287209400,0.71410031,118120.0,118110.0,0.16405]
[1753287209827,0.71510031,118120.0,118110.0,0.16405]
[1753287210049,0.86720031,118120.0,118110.0,0.10215]
[1753287210262,0.87015031,118120.0,118110.0,0.1]
[1753287211375,0.93355031,118120.0,118110.0,0.1]
[1753287211784,0.90095031,118120.0,118110.0,0.1]
[1753287212556,0.72927031,118120.0,118110.0,0.1]
[1753287212751,0.86987031,118120.0,118110.0,0.1]
[1753287214544,0.86987031,118120.0,118110.0,0.10215]
[1753287214795,0.86692031,118120.0,118110.0,0.10215]
[1753287214979,0.86498031,118120.0,118110.0,0.10215]
[1753287215434,0.72422031,118120.0,118110.0,0.10215]
[1753287215639,0.72422031,118120.0,118110.0,0.6606023]
[1753287215849,0.86498031,118120.0,118110.0,0.35577681]
[1753287216092,0.86498031,118120.0,118110.0,0.71760176]
[1753287217145,0.70408651,118120.0,118110.0,0.37270938]
[1753287217443,0.70408601,118120.0,118110.0,0.73453419]
[1753287217659,0.87340534,118120.0,118110.0,0.71760176]
[1753287217880,0.7125519,118120.0,118110.0,0.72606794]
[1753287218090,0.87340584,118120.0,118110.0,0.70913544]
[1753287218300,0.87340584,118120.0,118110.0,0.71760176]
[1753287218482,0.69562019,118120.0,118110.0,0.72606794]
[1753287218740,0.54562019,118120.0,118110.0,0.81054524]
[1753287218954,0.24549998,118120.0,118110.0,0.72606794]
[1753287219166,0.23703452,118120.0,118110.0,0.72606794]
[1753287219377,0.2285692,118120.0,118110.0,0.72606794]
[1753287219589,0.2140919,118120.0,118110.0,0.72606794]
[1753287219799,0.22255722,118120.0,118110.0,0.72606794]
[1753287220015,0.23102261,118120.0,118110.0,0.72606794]
[1753287220213,0.2140919,118120.0,118110.0,0.73805193]
[1753287220428,0.2140919,118120.0,118110.0,0.3846933]
[1753287220632,0.23102304,118120.0,118110.0,0.72606794]
[1753287220844,0.23102296,118120.0,118110.0,0.72606794]
[1753287221051,0.23102289,118120.0,118110.0,0.72606794]
[1753287221296,0.23948871,118120.0,118110.0,0.72606794]
[1753287221532,0.41727364,118120.0,118110.0,0.52286863]
[1753287221754,0.47635435,118120.0,118110.0,0.16645]
[1753287222189,0.48481995,118120.0,118110.0,0.72606816]
[1753287222646,0.49328584,118120.0,118110.0,0.72606816]
[1753287222856,0.49328584,118120.0,118110.0,0.73453448]
[1753287223194,0.49328584,118120.0,118110.0,0.7260683]
[1753287223618,0.49328584,118120.0,118110.0,0.70913559]
[1753287223619,0.48482024,118120.0,118110.0,0.70913559]
[1753287223806,0.47635442,118120.0,118110.0,0.70066898]
[1753287224024,0.47635442,118120.0,118110.0,0.70913559]
[1753287224273,0.47635442,118120.0,118110.0,0.70913552]
[1753287224488,0.47635442,118120.0,118110.0,0.71760198]
[1753287224705,0.47635442,118120.0,118110.0,0.70913552]
[1753287225132,0.47635442,118120.0,118110.0,0.72606837]
[1753287225354,0.30703488,118120.0,118110.0,0.72606837]
[1753287225569,0.32396616,118120.0,118110.0,0.80847555]
[1753287225784,0.50175138,118120.0,118110.0,0.80847555]
[1753287226217,0.31550034,118120.0,118110.0,0.80847555]
[1753287226426,0.32396587,118120.0,118110.0,0.80847555]
[1753287226633,0.50175109,118120.0,118110.0,0.80847555]
[1753287227429,0.32396587,118120.0,118110.0,0.80847555]
[1753287227662,0.2140919,118120.0,118110.0,0.80847555]
[1753287228525,0.2140919,118120.0,118110.0,0.73453455]
[1753287228526,0.22255729,118120.0,118110.0,0.73453455]
[1753287228766,0.41727365,118120.0,118110.0,0.6922023]
[1753287228991,0.23102275,118120.0,118110.0,0.70913544]
[1753287229207,0.2140919,118120.0,118110.0,0.72606801]
[1753287229633,0.2140919,118120.0,118110.0,0.37270938]
[1753287229839,0.2140919,118120.0,118110.0,0.78112002]
[1753287230278,0.2140919,118120.0,118110.0,0.72606801]
[1753287230836,0.23102289,118120.0,118110.0,0.72606801]
[1753287231066,0.23102282,118120.0,118110.0,0.72606801]
[1753287231709,0.22255729,118120.0,118110.0,0.72606801]
[1753287231890,0.22255722,118120.0,118110.0,0.72606801]
[1753287232249,0.2140919,118120.0,118110.0,0.72606801]
[1753287232462,0.2140919,118120.0,118110.0,0.81054531]
[1753287232859,0.22255722,118120.0,118110.0,0.81054531]
[1753287233084,0.2140919,118120.0,118110.0,0.81054531]
[1753287233886,0.2140919,118120.0,118110.0,1.15054531]
[1753287234294,0.2140919,118120.0,118110.0,0.79718668]
[1753287234544,0.2140919,118120.0,118110.0,1.15054531]
[1753287234776,0.0734919,118120.0,118110.0,1.29262531]
[1753287234979,0.0734919,118120.0,118110.0,1.34262531]
[1753287235202,0.0734919,118120.0,118110.0,1.41007433]
[1753287235408,0.0724919,118120.0,118110.0,1.41007433]
[1753287235812,0.0714919,118120.0,118110.0,1.41107433]
[1753287236035,0.0734919,118120.0,118110.0,1.41107433]
[1753287236245,0.0734919,118120.0,118110.0,1.49555163]
[1753287236998,0.0724919,118120.0,118110.0,1.49455163]
[1753287237599,0.002,118120.0,118110.0,1.141193]
[1753287237817,0.002,118120.0,118110.0,1.49455163]
[1753287238010,0.002,118120.0,118110.0,1.5197433]
[1753287238251,0.002,118120.0,118110.0,1.4030973]
[1753287238474,0.003,118120.0,118110.0,1.3060973]
[1753287238689,0.003,118120.0,118110.0,1.06910467]
[1753287238934,0.001,118120.0,118110.0,1.4724633]
[1753287239158,0.002,118120.0,118110.0,1.5234633]
[1753287239373,0.002,118120.0,118110.0,1.4734633]
[1753287239813,0.002,118120.0,118110.0,1.2816633]
[1753287240014,0.01693572,118090.0,118080.0,0.0002]
[1753287240222,0.63648611,118090.0,118080.0,0.0002]
[1753287240457,0.81782989,118090.0,118080.0,0.0002]
[1753287240684,0.64,118090.0,118080.0,0.55978978]
[1753287240904,0.80936235,118090.0,118080.0,0.77811875]
[1753287241109,0.3844773,118090.0,118080.0,0.78658708]
[1753287241316,0.3844773,118090.0,118080.0,0.70210978]
[1753287241536,0.27084553,118100.0,118080.0,0.69364145]
[1753287241741,0.69532283,118100.0,118090.0,0.00211702]
[1753287241956,0.18629779,118090.0,118080.0,0.35355863]
[1753287242209,0.29086117,118090.0,118080.0,0.0002]
[1753287242447,0.28239356,118090.0,118080.0,0.0002]
[1753287242673,0.27492573,118090.0,118080.0,0.0002]
[1753287242967,0.27492494,118090.0,118080.0,0.00866883]
[1753287243192,0.29186081,118090.0,118080.0,0.0002]
[1753287243838,0.29186081,118090.0,118080.0,0.36202746]
[1753287243839,0.29186074,118090.0,118080.0,0.36202746]
[1753287244063,0.0864773,118090.0,118080.0,0.62859078]
[1753287244287,0.0854773,118090.0,118080.0,0.63057078]
[1753287244703,0.0874773,118090.0,118080.0,0.56078949]
[1753287245314,0.003,118090.0,118080.0,0.56078949]
[1753287245724,0.003,118090.0,118080.0,0.54087276]
[1753287246010,0.003,118090.0,118080.0,0.73194963]
[1753287246447,0.003,118090.0,118080.0,0.378591]
[1753287246693,0.17236235,118090.0,118080.0,0.53240415]
[1753287246912,0.003,118090.0,118080.0,0.7603547]
[1753287247117,0.003,118090.0,118080.0,0.70473978]
[1753287247536,0.003,118090.0,118080.0,0.73423978]
[1753287248166,0.003,118090.0,118080.0,0.76633978]
[1753287248589,0.003,118090.0,118080.0,0.73423978]
[1753287249249,0.003,118090.0,118080.0,0.72701145]
[1753287249453,0.003,118090.0,118080.0,0.70597978]
[1753287249591,0.403,118090.0,118080.0,0.70597978]
[1753287249796,0.403,118090.0,118080.0,0.76863725]
[1753287250469,0.403,118090.0,118080.0,0.56285978]
[1753287250668,0.403,118090.0,118080.0,0.70597978]
[1753287252804,0.403,118090.0,118080.0,0.70557978]
[1753287254074,0.403,118090.0,118080.0,0.56285978]
[1753287254506,0.403,118090.0,118080.0,0.70521678]
[1753287254744,0.403,118090.0,118080.0,0.78969408]
[1753287255171,0.403,118090.0,118080.0,0.81899408]
[1753287255421,0.59132807,118090.0,118080.0,0.001]
[1753287255652,0.99437807,118090.0,118080.0,0.001]
[1753287255905,0.59437807,118090.0,118080.0,0.001]
[1753287256724,0.67885537,118090.0,118080.0,0.001]
[1753287256949,0.81654762,118090.0,118080.0,0.001]
[1753287257163,0.61048719,118090.0,118080.0,0.54067262]
[1753287257390,0.51754235,118090.0,118080.0,0.18938406]
[1753287257615,0.35349747,118090.0,118080.0,0.58959254]
[1753287257832,0.003,118090.0,118080.0,0.55967956]
[1753287258268,0.01993508,118090.0,118080.0,0.71458796]
[1753287258494,0.003,118090.0,118080.0,0.71458796]
[1753287259135,0.003,118090.0,118080.0,0.74936796]
[1753287259352,0.003,118090.0,118080.0,0.78126796]
[1753287259593,0.003,118090.0,118080.0,0.74936796]
[1753287259819,0.403,118090.0,118080.0,0.74936796]
[1753287260479,0.403,118090.0,118080.0,0.83384526]
[1753287261378,0.403,118090.0,118080.0,0.86434526]
[1753287261846,0.401,118090.0,118080.0,0.86334526]
[1753287262037,0.001,118090.0,118080.0,0.86334526]
[1753287262676,8.85,118100.0,118090.0,0.19476583]
[1753287262894,8.85,118100.0,118090.0,0.63467176]
[1753287263560,8.45,118100.0,118090.0,0.63467176]
[1753287263781,8.451,118100.0,118090.0,0.63567176]
[1753287265728,8.301,118100.0,118090.0,1.02307039]
[1753287265957,8.47881483,118100.0,118090.0,0.56535902]
[1753287266180,8.48083483,118100.0,118090.0,0.6888067]
[1753287266391,8.4893018,118100.0,118090.0,0.6888867]
[1753287266612,8.66220638,118100.0,118090.0,0.14816]
[1753287267270,8.65373898,118100.0,118090.0,0.15662804]
[1753287267484,8.65373891,118100.0,118090.0,0.31752235]
[1753287267698,8.66220616,118100.0,118090.0,0.50151863]
[1753287267911,8.67067356,118100.0,118090.0,0.50998674]
[1753287268386,8.65373891,118100.0,118090.0,0.68781699]
[1753287268595,8.6452718,118100.0,118090.0,0.69628474]
[1753287268818,8.63680483,118100.0,118090.0,0.71322003]
[1753287269035,8.63680476,118100.0,118090.0,0.75795952]
[1753287269241,8.65373862,118100.0,118090.0,0.68781699]
[1753287269499,8.65373862,118100.0,118090.0,0.69628482]
[1753287269689,9.07067291,118100.0,118090.0,0.69628496]
[1753287269931,9.07067341,118100.0,118090.0,0.68781713]
[1753287270145,9.07067341,118100.0,118090.0,0.51845478]
[1753287270358,9.06220609,118100.0,118090.0,0.68781713]
[1753287270622,8.94154974,118100.0,118090.0,0.002]
[1753287274993,9.08718974,118100.0,118090.0,0.002]
[1753287279404,9.08682974,118100.0,118090.0,0.002]
[1753287279849,9.08682974,118100.0,118090.0,0.35535863]
[1753287280493,9.03337657,118100.0,118090.0,0.35535863]
[1753287280713,9.04184382,118100.0,118090.0,0.35535863]
[1753287281362,9.03337642,118100.0,118090.0,0.35535863]
[1753287281582,9.04184382,118100.0,118090.0,0.35535863]
[1753287281799,9.04184382,118100.0,118090.0,0.41968749]
[1753287282224,9.03337642,118100.0,118090.0,0.54165706]
[1753287282438,9.03337642,118100.0,118090.0,0.53318909]
[1753287282650,9.04184382,118100.0,118090.0,0.35535863]
[1753287283102,9.04184382,118100.0,118090.0,0.36382674]
[1753287283303,9.04184382,118100.0,118090.0,0.35535863]
[1753287283551,9.03337642,118100.0,118090.0,0.53318902]
[1753287283766,8.86281531,118100.0,118090.0,0.53318902]
[1753287283991,8.6835173,118100.0,118090.0,0.55226474]
[1753287284214,8.69198405,118100.0,118090.0,0.70577242]
[1753287284425,8.55541087,118100.0,118090.0,0.71424003]
[1753287284898,8.54694405,118100.0,118090.0,0.71424003]
[1753287285106,8.55541094,118100.0,118090.0,0.71424003]
[1753287285336,8.55541094,118100.0,118090.0,0.73969811]
[1753287285776,8.54694405,118100.0,118090.0,0.73969811]
[1753287285996,8.73524606,118100.0,118090.0,0.68036902]
[1753287286224,8.883297,118100.0,118090.0,0.50043863]
[1753287286662,8.87482989,118100.0,118090.0,0.50043863]
[1753287286900,8.87482989,118100.0,118090.0,0.002]
[1753287286901,9.04666271,118100.0,118090.0,0.002]
[1753287287118,9.22706271,118100.0,118090.0,0.002]
[1753287291494,9.56706271,118100.0,118090.0,0.002]
[1753287293372,9.56406271,118100.0,118090.0,0.001]
[1753287293871,9.56806271,118100.0,118090.0,0.002]
[1753287294095,9.56706271,118100.0,118090.0,0.001]
[1753287294320,9.56806271,118100.0,118090.0,0.002]
[1753287296435,9.73551173,118100.0,118090.0,0.002]
[1753287296631,9.58551173,118100.0,118090.0,0.002]
[1753287297407,9.58425681,118100.0,118090.0,0.002]
[1753287300344,9.43425681,118100.0,118090.0,0.002]
[1753287300562,9.41680779,118100.0,118090.0,0.002]
[1753287301387,9.27172779,118100.0,118090.0,0.002]
[1753287301601,9.35518779,118100.0,118090.0,0.35535863]
[1753287301808,9.84968779,118100.0,118090.0,0.002]
[1753287302014,9.91308779,118100.0,118090.0,0.002]
[1753287304733,10.06308779,118100.0,118090.0,0.002]
[1753287307740,9.56858779,118100.0,118090.0,0.002]
[1753287308969,9.50518779,118100.0,118090.0,0.002]
[1753287309418,9.53768779,118100.0,118090.0,0.002]
[1753287310541,9.50518779,118100.0,118090.0,0.002]
[1753287310955,9.50518779,118100.0,118090.0,0.00409]
[1753287311596,9.50518779,118100.0,118090.0,0.002]
[1753287313783,9.53618779,118100.0,118090.0,0.002]
[1753287314033,9.56908779,118100.0,118090.0,0.002]
[1753287315376,9.57777949,118100.0,118090.0,0.002]
[1753287317840,9.54487949,118100.0,118090.0,0.002]
[1753287318909,9.51387949,118100.0,118090.0,0.002]
[1753287319096,9.36387949,118100.0,118090.0,0.00409]
[1753287319405,9.51387949,118100.0,118090.0,0.367305]
[1753287319604,9.51387949,118100.0,118090.0,0.002]
[1753287319804,9.51387949,118100.0,118090.0,0.367305]
[1753287321799,9.51387949,118100.0,118090.0,0.54722546]
[1753287322014,8.88826105,118100.0,118090.0,0.6930445]
[1753287322190,8.90519491,118100.0,118090.0,0.6930445]
[1753287322437,9.06366216,118100.0,118090.0,0.63598894]
[1753287322870,9.23301082,118100.0,118090.0,0.63598908]
[1753287323075,9.05519541,118100.0,118090.0,0.64445669]
[1753287323291,8.6609036,118100.0,118090.0,0.64445669]
[1753287323507,8.80366353,118100.0,118090.0,0.64445669]
[1753287323721,8.45519678,118100.0,118090.0,0.72893399]
[1753287324382,8.45419678,118100.0,118090.0,0.72793399]
[1753287324600,8.45019678,118100.0,118090.0,0.72693399]
[1753287324823,8.45119678,118100.0,118090.0,0.72793399]
[1753287325050,8.46166353,118100.0,118090.0,0.72893399]
[1753287325482,8.45319678,118100.0,118090.0,0.72893399]
[1753287330455,8.45319678,118100.0,118090.0,0.72495999]
[1753287331143,8.45319678,118100.0,118090.0,0.72893399]
[1753287334103,8.44450508,118100.0,118090.0,0.72893399]
[1753287334332,8.44450508,118100.0,118090.0,0.36362899]
[1753287334553,8.44450508,118100.0,118090.0,0.72893399]
[1753287335107,8.44250508,118100.0,118090.0,0.72793399]
[1753287335559,8.44150508,118100.0,118090.0,0.72693399]
[1753287335765,8.44250508,118100.0,118090.0,0.72793399]
[1753287336200,8.29974508,118100.0,118090.0,0.72793399]
[1753287336445,8.44134508,118100.0,118090.0,0.72793399]
[1753287337088,8.29974508,118100.0,118090.0,0.72793399]
[1753287337555,8.29974508,118100.0,118090.0,0.64345669]
[1753287338012,8.4603188,118100.0,118090.0,0.58109669]
[1753287338244,8.60697183,118100.0,118090.0,0.21579169]
[1753287338463,8.61543872,118100.0,118090.0,0.58109669]
[1753287338752,8.62390576,118100.0,118090.0,0.21579169]
[1753287338985,8.60697183,118100.0,118090.0,0.58109669]
[1753287339210,8.59850508,118100.0,118090.0,0.58109669]
[1753287339470,8.59338508,118100.0,118090.0,0.66557399]
[1753287339682,8.84338508,118100.0,118090.0,0.73027399]
[1753287339927,8.84338508,118100.0,118090.0,0.73351399]
[1753287340129,8.44338508,118100.0,118090.0,0.73351399]
[1753287341629,8.44338508,118100.0,118090.0,0.28373169]
[1753287341843,8.44338508,118100.0,118090.0,0.64903669]
[1753287342257,8.44338508,118100.0,118090.0,0.64579669]
[1753287344106,8.44543508,118100.0,118090.0,0.61329669]
[1753287344320,8.44543508,118100.0,118090.0,0.58109669]
[1753287344321,8.45697183,118100.0,118090.0,0.58109669]
[1753287344494,8.46543872,118100.0,118090.0,0.58109669]
[1753287344695,8.45697183,118100.0,118090.0,0.58109669]
[1753287344917,8.46543872,118100.0,118090.0,0.58109669]
[1753287345800,8.47390569,118100.0,118090.0,0.58109669]
[1753287346673,8.6432537,118100.0,118090.0,0.53666735]
[1753287346917,9.13262468,118100.0,118090.0,0.002]
[1753287347061,9.42418468,118100.0,118090.0,0.002]
[1753287347440,9.57418468,118100.0,118090.0,0.002]
[1753287348502,9.57418468,118100.0,118090.0,0.367305]
[1753287348936,9.57418468,118100.0,118090.0,0.002]
[1753287349750,9.57418468,118100.0,118090.0,0.367305]
[1753287350173,9.57418468,118100.0,118090.0,0.002]
[1753287352971,9.57418468,118100.0,118090.0,0.367305]
[1753287353182,9.57418468,118100.0,118090.0,0.53666735]
[1753287353355,9.57418468,118100.0,118090.0,0.55360343]
[1753287353606,9.04827667,118100.0,118090.0,0.6131309]
[1753287353860,8.73134238,118100.0,118090.0,0.6151709]
[1753287354074,8.44286508,118100.0,118090.0,0.6785709]
[1753287354286,8.44286508,118100.0,118090.0,0.6818109]
[1753287354674,8.44286508,118100.0,118090.0,0.63597887]
[1753287354914,8.4513319,118100.0,118090.0,0.27391387]
[1753287355143,8.31867887,118100.0,118090.0,0.63597887]
[1753287355356,8.45975879,118100.0,118090.0,0.60417887]
[1753287355585,8.30174508,118100.0,118090.0,0.60417887]
[1753287355793,8.44278508,118100.0,118090.0,0.70386527]
[1753287355997,8.45125183,118100.0,118090.0,0.70386527]
[1753287356439,8.44278508,118100.0,118090.0,0.70386527]
[1753287356651,8.4512519,118100.0,118090.0,0.70386527]
[1753287356870,8.45971894,118100.0,118090.0,0.63627887]
[1753287357087,8.45971894,118100.0,118090.0,0.57257901]
[1753287357088,8.65100153,118100.0,118090.0,0.57257901]
[1753287357300,8.91877883,118100.0,118090.0,0.56207133]
[1753287357521,9.04337779,118100.0,118090.0,0.002]
[1753287357768,9.15875509,118100.0,118090.0,0.002]
[1753287357951,9.07427779,118100.0,118090.0,0.002]
[1753287358193,9.56427779,118100.0,118090.0,0.002]
[1753287362505,9.56427779,118100.0,118090.0,0.367305]
[1753287362712,9.56427779,118100.0,118090.0,0.002]
[1753287364461,9.56427779,118100.0,118090.0,0.367305]
[1753287364659,9.56371779,118100.0,118090.0,0.367305]
[1753287365242,9.55525039,118100.0,118090.0,0.002]
[1753287365418,9.55525039,118100.0,118090.0,0.367305]
[1753287368126,9.55525039,118100.0,118090.0,0.002]
[1753287368637,9.55513039,118100.0,118090.0,0.002]
[1753287370594,9.1991975,118100.0,118090.0,0.54513532]
[1753287370807,9.17678913,118100.0,118090.0,0.64852798]
[1753287371010,9.35460411,118100.0,118090.0,0.64006037]
[1753287371211,9.1852561,118100.0,118090.0,0.64852798]
[1753287371889,9.36307122,118100.0,118090.0,0.19874568]
[1753287372190,9.36307122,118100.0,118090.0,0.57251836]
[1753287372395,9.1832761,118100.0,118090.0,0.57251836]
[1753287372600,9.1832761,118100.0,118090.0,0.63818836]
[1753287372601,8.30174508,118100.0,118090.0,0.63818836]
[1753287373015,8.44170508,118100.0,118090.0,0.63818836]
[1753287373230,8.44170508,118100.0,118090.0,0.35736066]
[1753287373371,8.44170508,118100.0,118090.0,0.72266566]
[1753287374398,8.44162508,118100.0,118090.0,0.72266566]
[1753287374834,8.44162508,118100.0,118090.0,0.63818836]
[1753287378392,8.30174508,118100.0,118090.0,0.63818836]
[1753287378599,8.44162508,118100.0,118090.0,0.63818836]
[1753287378808,8.44662508,118100.0,118090.0,0.57251836]
[1753287379070,8.44662508,118100.0,118090.0,0.20721336]
[1753287379211,8.44662508,118100.0,118090.0,0.63471836]
[1753287379212,8.44162508,118100.0,118090.0,0.63471836]
[1753287379419,8.44162508,118100.0,118090.0,0.67817378]
[1753287381615,8.44162508,118100.0,118090.0,0.63768836]
[1753287382611,8.44162508,118100.0,118090.0,0.63471836]
[1753287383024,8.44162508,118100.0,118090.0,0.26941336]
[1753287383276,8.44162508,118100.0,118090.0,0.63471836]
[1753287384226,8.44162508,118100.0,118090.0,0.63768836]
[1753287384434,8.30174508,118100.0,118090.0,0.7192534]
[1753287384635,8.44162508,118100.0,118090.0,0.73670242]
[1753287384853,8.30174508,118100.0,118090.0,1.29188742]
[1753287385072,8.30174508,118100.0,118090.0,0.92658242]
[1753287385962,8.29874508,118100.0,118090.0,0.92458242]
[1753287386174,8.30074508,118100.0,118090.0,0.92858242]
[1753287386593,8.30074508,118100.0,118090.0,0.56327742]
[1753287386742,8.30074508,118100.0,118090.0,0.78870242]
[1753287386955,8.30074508,118100.0,118090.0,0.48171238]
[1753287387155,8.30074508,118100.0,118090.0,0.84701738]
[1753287387541,8.30074508,118100.0,118090.0,0.79701738]
[1753287387723,8.30074508,118100.0,118090.0,0.43171238]
[1753287387931,8.30074508,118100.0,118090.0,0.79701738]
[1753287388156,8.30074508,118100.0,118090.0,0.93054781]
[1753287389169,8.30074508,118100.0,118090.0,0.93050781]
[1753287389805,8.30074508,118100.0,118090.0,0.9387951]
[1753287390642,8.30074508,118100.0,118090.0,1.0232724]
[1753287390860,8.30074508,118100.0,118090.0,1.7785774]
[1753287391288,7.917443,118100.0,118090.0,1.7785774]
[1753287391505,7.61461089,118100.0,118090.0,1.7785774]
[1753287391708,7.433511,118100.0,118090.0,1.7785774]
[1753287391945,7.25383525,118100.0,118090.0,1.7785774]
[1753287392150,7.06105674,118100.0,118090.0,1.7785774]
[1753287392356,6.89557533,118100.0,118090.0,1.7765774]
[1753287392774,6.79645448,118100.0,118090.0,1.7815774]
[1753287392983,6.39774404,118100.0,118090.0,1.7815774]
[1753287393187,6.29424287,118100.0,118090.0,1.7815774]
[1753287393401,6.29324287,118100.0,118090.0,1.7795774]
[1753287393603,6.29324287,118100.0,118090.0,1.6427374]
[1753287393809,6.29424287,118100.0,118090.0,1.7825374]
[1753287394240,6.29324287,118100.0,118090.0,1.7795374]
[1753287394667,5.90183753,118100.0,118090.0,1.7795374]
[1753287395512,5.34916419,118100.0,118090.0,1.7795374]
[1753287395732,5.22407779,118100.0,118090.0,1.7795374]
[1753287395911,4.93888768,118100.0,118090.0,1.7795374]
[1753287396117,3.8995987,118100.0,118090.0,2.1076424]
[1753287396315,3.03137522,118100.0,118090.0,2.02411197]
[1753287396516,2.8613652,118100.0,118090.0,2.02811197]
[1753287396718,2.45195716,118100.0,118090.0,2.02811197]
[1753287396928,2.19794714,118100.0,118090.0,2.19933297]
[1753287397079,2.06935533,118100.0,118090.0,2.19433297]
[1753287397287,1.12450413,118100.0,118090.0,2.19433297]
[1753287397511,0.84620223,118100.0,118090.0,4.99294697]
[1753287397711,0.63284279,118100.0,118090.0,4.99794697]
[1753287397978,0.63284279,118100.0,118090.0,5.00294697]
[1753287397979,0.60349683,118100.0,118090.0,5.00294697]
[1753287398181,0.43865066,118100.0,118090.0,5.00294697]
[1753287398409,0.07085754,118190.0,118180.0,0.1946175]
[1753287398410,0.13195754,118190.0,118180.0,0.1946175]
[1753287398614,0.13399754,118190.0,118180.0,0.6997225]
[1753287399230,0.06637,118190.0,118180.0,0.69044584]
[1753287399549,0.0611,118190.0,118180.0,0.69258584]
[1753287399755,0.07237,118190.0,118180.0,0.69358584]
[1753287399967,0.07237,118190.0,118180.0,0.35702834]
[1753287400359,0.65850987,118190.0,118180.0,0.001]
[1753287400575,0.47237,118190.0,118180.0,0.14076]
[1753287400799,0.47237,118190.0,118180.0,0.001]
[1753287401014,0.47237,118190.0,118180.0,0.54422916]
[1753287401239,0.47237,118190.0,118180.0,0.54318475]
[1753287401442,0.47237,118190.0,118180.0,0.001]
[1753287401867,0.47237,118190.0,118180.0,0.35702834]
[1753287402117,0.61213,118190.0,118180.0,0.69140584]
[1753287402738,0.61213,118190.0,118180.0,0.67448337]
[1753287402935,0.47237,118190.0,118180.0,0.35702834]
[1753287403168,0.47237,118190.0,118180.0,0.49674834]
[1753287403399,0.65850987,118190.0,118180.0,0.001]
[1753287403610,0.6669706,118190.0,118180.0,0.001]
[1753287403824,0.67543148,118190.0,118180.0,0.001]
[1753287404035,0.74298796,118190.0,118180.0,0.001]
[1753287406191,0.74298796,118190.0,118180.0,0.002]
[1753287406637,0.73452723,118190.0,118180.0,0.002]
[1753287406900,1.15427589,118190.0,118180.0,0.002]
[1753287407142,0.75427589,118190.0,118180.0,0.002]
[1753287407389,0.67452723,118190.0,118180.0,0.002]
[1753287407639,0.33452723,118190.0,118180.0,0.001]
[1753287407883,0.33552723,118190.0,118180.0,0.001]
[1753287408372,0.33552723,118190.0,118150.0,0.18620372]
[1753287408373,0.0652,118160.0,118150.0,0.18620372]
[1753287408596,0.20492,118160.0,118150.0,0.18620379]
[1753287408824,0.0612,118150.0,118140.0,1.12289348]
[1753287409074,0.06324,118150.0,118140.0,1.12289348]
[1753287409494,0.06647,118150.0,118140.0,0.97470988]
[1753287409708,0.06647,118150.0,118140.0,1.13131808]
[1753287410209,0.0612,118150.0,118140.0,1.15862306]
[1753287410430,0.20602,118160.0,118150.0,0.19466692]
[1753287410667,0.20602,118160.0,118150.0,0.55069526]